fUST/lending_fUST_20250708
["ID","MTS","AMOUNT","RATE_DAILY","PERIOD"]
[370235447,1751920243975,-460.0,0.00019178,2]
[370235449,1751920243985,-460.0,0.00019178,2]
[370235450,1751920243994,-460.72468558,0.00019178,2]
[370235452,1751920244003,-460.0,0.00019178,2]
[370235454,1751920244012,-460.0,0.00019178,2]
[370235456,1751920244021,-460.0,0.00019178,2]
[370235458,1751920244032,-460.0,0.00019178,2]
[370235460,1751920244041,-460.0,0.00019178,2]
[370235462,1751920244050,-460.0,0.00019178,2]
[370235464,1751920244060,-460.0,0.00019178,2]
[370235466,1751920244069,-553.69,0.00019178,2]
[370235468,1751920244077,-460.0,0.00019178,2]
[370235470,1751920244087,-460.0,0.00019178,2]
[370235471,1751920244096,-460.0,0.00019178,2]
[370235473,1751920244106,-312.60297206,0.00019178,2]
[370235475,1751920244115,-460.0,0.00019178,2]
[370235477,1751920244123,-460.0,0.00019178,2]
[370235479,1751920244133,-460.0,0.00019178,2]
[370235481,1751920244142,-465.02003316,0.00019178,2]
[370235483,1751920244151,-460.0,0.00019178,2]
[370235485,1751920244161,-460.0,0.00019178,2]
[370235486,1751920244171,-460.0,0.00019178,2]
[370235488,1751920244180,-460.0,0.00019178,2]
[370235490,1751920244189,-460.0,0.00019178,2]
[370235492,1751920244198,-460.0,0.00019178,2]
[370235494,1751920244207,-460.0,0.00019178,2]
[370235496,1751920244220,-460.0,0.00019178,2]
[370235498,1751920244229,-460.0,0.00019178,2]
[370235500,1751920244240,-460.0,0.00019178,2]
[370235502,1751920244248,-460.0,0.00019178,2]
[370235503,1751920244258,-460.0,0.00019178,2]
[370235505,1751920244272,-1689.24,0.00019178,2]
[370235507,1751920244281,-460.0,0.00019178,2]
[370235509,1751920244291,-460.0,0.00019178,2]
[370235511,1751920244300,-460.0,0.00019178,2]
[370235513,1751920244309,-500.0,0.00019178,2]
[370235515,1751920244318,-500.0,0.00019178,2]
[370235517,1751920244328,-500.0,0.00019178,2]
[370235519,1751920244337,-500.0,0.00019178,2]
[370235521,1751920244346,-500.0,0.00019178,2]
[370235522,1751920244355,-500.0,0.00019178,2]
[370235524,1751920244365,-500.0,0.00019178,2]
[370235526,1751920244374,-500.0,0.00019178,2]
[370235528,1751920244384,-500.0,0.00019178,2]
[370235530,1751920244394,-2289.83,0.00019178,2]
[370235532,1751920244404,-500.0,0.00019178,2]
[370235534,1751920244413,-500.0,0.00019178,2]
[370235536,1751920244422,-500.0,0.00019178,2]
[370235538,1751920244431,-460.0,0.00019178,2]
[370235540,1751920244440,-460.0,0.00019178,2]
[370235542,1751920244450,-460.0,0.00019178,2]
[370235544,1751920244459,-460.0,0.00019178,2]
[370235545,1751920244469,-460.0,0.00019178,2]
[370235547,1751920244478,-460.0,0.00019178,2]
[370235549,1751920244487,-460.0,0.00019178,2]
[370235551,1751920244497,-460.0,0.00019178,2]
[370235553,1751920244507,-460.0,0.00019178,2]
[370235555,1751920244516,-460.0,0.00019178,2]
[370235557,1751920244525,-2822.69,0.00019178,2]
[370235559,1751920244535,-460.0,0.00019178,2]
[370235561,1751920244545,-460.0,0.00019178,2]
[370235563,1751920244554,-200.48697563,0.00019178,2]
[370235564,1751920244563,-460.0,0.00019178,2]
[370235566,1751920244572,-494.0277784,0.00019178,2]
[370235568,1751920244581,-460.0,0.00019178,2]
[370235570,1751920244591,-460.0,0.00019178,2]
[370235572,1751920244600,-460.0,0.00019178,2]
[370235574,1751920244609,-460.0,0.00019178,2]
[370235576,1751920244618,-460.0,0.00019178,2]
[370235578,1751920244628,-460.0,0.00019178,2]
[370235580,1751920244637,-781.92,0.00019178,2]
[370235582,1751920244646,-717.79,0.00019178,2]
[370235584,1751920244655,-1492.43,0.00019178,2]
[370235586,1751920244664,-460.0,0.00019178,2]
[370235587,1751920244674,-460.0,0.00019178,2]
[370235589,1751920244683,-461.02098634,0.00019178,2]
[370235591,1751920244692,-460.0,0.00019178,2]
[370235593,1751920244701,-461.60316454,0.00019178,2]
[370235595,1751920244710,-460.0,0.00019178,2]
[370235597,1751920244720,-478.36,0.00019178,2]
[370235599,1751920244729,-461.40575762,0.00019178,2]
[370235601,1751920244738,-1864.3,0.00019178,2]
[370235603,1751920244747,-460.0,0.00019178,2]
[370235605,1751920244756,-460.0,0.00019178,2]
[370235607,1751920244766,-465.25512737,0.00019178,2]
[370235609,1751920244775,-460.0,0.00019178,2]
[370235611,1751920244785,-460.0,0.00019178,2]
[370235613,1751920244795,-300.85989629,0.00019178,2]
[370235614,1751920244804,-460.0,0.00019178,2]
[370235616,1751920244814,-460.0,0.00019178,2]
[370235618,1751920244823,-450.584149,0.00019178,2]
[370235620,1751920244832,-460.0,0.00019178,2]
[370235622,1751920244842,-460.0,0.00019178,2]
[370235624,1751920244852,-460.0,0.00019178,2]
[370235626,1751920244861,-460.0,0.00019178,2]
[370235628,1751920244871,-460.0,0.00019178,2]
[370235630,1751920244882,-2206.67,0.00019178,2]
[370235632,1751920244891,-1597.8,0.00019178,2]
[370235634,1751920244900,-460.0,0.00019178,2]
[370235636,1751920244910,-460.0,0.00019178,2]
[370235638,1751920244919,-460.0,0.00019178,2]
[370235639,1751920244929,-460.0,0.00019178,2]
[370235641,1751920244938,-462.5511712,0.00019178,2]
[370235643,1751920244949,-460.0,0.00019178,2]
[370235645,1751920244958,-280.0,0.00019178,2]
[370235647,1751920244967,-203.91261954,0.00019178,2]
[370235649,1751920244976,-460.0,0.00019178,2]
[370235651,1751920244985,-460.0,0.00019178,2]
[370235653,1751920244994,-460.0,0.00019178,2]
[370235655,1751920245003,-460.0,0.00019178,2]
[370235657,1751920245012,-333.99300406,0.00019311,2]
[370235659,1751920245021,-63214.98923318,0.00019329,2]
[370235661,1751920245031,-500.0,0.00019343,2]
[370235663,1751920245040,-500.0,0.00019451,2]
[370235665,1751920245050,-500.0,0.00019451,2]
[370235667,1751920245059,-500.0,0.00019451,2]
[370235669,1751920245068,-500.0,0.00019451,2]
[370235670,1751920245078,-500.0,0.00019451,2]
[370235672,1751920245087,-615.03372588,0.00019451,2]
[370235674,1751920245099,-500.0,0.00019451,2]
[370235676,1751920245107,-284.28506979,0.00019451,2]
[370235678,1751920245116,-500.0,0.00019451,2]
[370235680,1751920245127,-500.0,0.00019451,2]
[370235682,1751920245136,-500.0,0.00019451,2]
[370235684,1751920245145,-500.0,0.00019451,2]
[370235685,1751920245155,-500.0,0.00019451,2]
[370235686,1751920245164,-500.0,0.00019451,2]
[370235687,1751920245174,-500.0,0.00019451,2]
[370235688,1751920245183,-576.11278085,0.00019451,2]
[370235689,1751920245192,-500.0,0.00019451,2]
[370235690,1751920245201,-500.0,0.00019451,2]
[370235691,1751920245213,-505.3,0.00019452,2]
[370235692,1751920245227,-516.79583218,0.00019452,2]
[370235693,1751920245237,-460.0,0.00019452,2]
[370235694,1751920245246,-460.0,0.00019452,2]
[370235695,1751920245256,-460.0,0.00019452,2]
[370235696,1751920245266,-460.0,0.00019452,2]
[370235697,1751920245275,-460.0,0.00019452,2]
[370235698,1751920245284,-460.0,0.00019452,2]
[370235699,1751920245294,-338.80730615,0.00019452,2]
[370235700,1751920245303,-460.0,0.00019452,2]
[370235701,1751920245313,-327.05675904,0.00019452,2]
[370235702,1751920245322,-460.0,0.00019452,2]
[370235703,1751920245331,-460.0,0.00019452,2]
[370235704,1751920245340,-460.0,0.00019452,2]
[370235705,1751920245349,-460.0,0.00019452,2]
[370235706,1751920245358,-460.0,0.00019452,2]
[370235707,1751920245368,-460.0,0.00019452,2]
[370235708,1751920245377,-462.53294494,0.00019452,2]
[370235709,1751920245387,-460.0,0.00019452,2]
[370235711,1751920245396,-453.003645,0.00019452,2]
[370235713,1751920245405,-460.0,0.00019452,2]
[370235715,1751920245415,-460.0,0.00019452,2]
[370235717,1751920245424,-127.13522801,0.00019452,2]
[370235720,1751920245442,-332.86477199,0.00019452,2]
[370235722,1751920245451,-460.0,0.00019452,2]
[370235724,1751920245460,-476.68022729,0.00019452,2]
[370235726,1751920245469,-460.0,0.00019452,2]
[370235728,1751920245478,-460.0,0.00019452,2]
[370235730,1751920245487,-460.0,0.00019452,2]
[370235732,1751920245497,-460.0,0.00019452,2]
[370235734,1751920245506,-460.0,0.00019452,2]
[370235736,1751920245515,-460.0,0.00019452,2]
[370235738,1751920245524,-460.0,0.00019452,2]
[370235740,1751920245534,-460.0,0.00019452,2]
[370235742,1751920245543,-460.0,0.00019452,2]
[370235744,1751920245552,-460.0,0.00019452,2]
[370235746,1751920245561,-364.46128237,0.00019452,2]
[370235748,1751920245571,-460.0,0.00019452,2]
[370235750,1751920245580,-460.0,0.00019452,2]
[370235752,1751920245589,-433.23672201,0.00019452,2]
[370235754,1751920245598,-460.0,0.00019452,2]
[370235756,1751920245607,-460.0,0.00019452,2]
[370235758,1751920245618,-460.0,0.00019452,2]
[370235760,1751920245627,-460.0,0.00019452,2]
[370235762,1751920245636,-460.0,0.00019452,2]
[370235764,1751920245646,-460.0,0.00019452,2]
[370235766,1751920245655,-460.0,0.00019452,2]
[370235768,1751920245668,-460.0,0.00019452,2]
[370235770,1751920245678,-460.0,0.00019452,2]
[370235772,1751920245687,-460.0,0.00019452,2]
[370235774,1751920245696,-460.0,0.00019452,2]
[370235776,1751920245705,-460.0,0.00019452,2]
[370235778,1751920245714,-218.17000001,0.00019452,2]
[370235780,1751920245723,-460.0,0.00019452,2]
[370235782,1751920245732,-460.0,0.00019452,2]
[370235784,1751920245741,-460.0,0.00019452,2]
[370235785,1751920245750,-460.0,0.00019452,2]
[370235788,1751920245760,-265.72811033,0.00019452,2]
[370235790,1751920245769,-530.0088579,0.00019452,2]
[370235792,1751920245778,-460.0,0.00019452,2]
[370235794,1751920245787,-460.0,0.00019452,2]
[370235795,1751920245796,-460.0,0.00019452,2]
[370235797,1751920245805,-542.28690944,0.00019452,2]
[370235799,1751920245814,-460.0,0.00019452,2]
[370235802,1751920245824,-287.74391415,0.00019452,2]
[370235803,1751920245833,-460.0,0.00019452,2]
[370235806,1751920245845,-460.0,0.00019452,2]
[370235809,1751920245855,-460.0,0.00019452,2]
[370235812,1751920245864,-190.1377434,0.00019452,2]
[370235815,1751920245873,-477.02,0.00019452,2]
[370235817,1751920245882,-479.68,0.00019452,2]
[370235819,1751920245891,-460.0,0.00019452,2]
[370235821,1751920245900,-460.0,0.00019452,2]
[370235823,1751920245909,-460.0,0.00019452,2]
[370235826,1751920245918,-460.0,0.00019452,2]
[370235828,1751920245927,-460.0,0.00019452,2]
[370235830,1751920245937,-460.0,0.00019452,2]
[370235832,1751920245946,-460.0,0.00019452,2]
[370235834,1751920245955,-500.0,0.00019452,2]
[370235836,1751920245964,-460.0,0.00019452,2]
[370235838,1751920245974,-500.95147745,0.00019452,2]
[370235840,1751920245983,-460.0,0.00019452,2]
[370235842,1751920245992,-460.0,0.00019452,2]
[370235844,1751920246002,-460.0,0.00019452,2]
[370235846,1751920246013,-460.0,0.00019452,2]
[370235848,1751920246022,-460.0,0.00019452,2]
[370235850,1751920246031,-460.0,0.00019452,2]
[370235852,1751920246041,-460.0,0.00019452,2]
[370235854,1751920246049,-448.23407156,0.00019452,2]
[370235856,1751920246058,-460.0,0.00019452,2]
[370235870,1751920246173,-466.69524604,0.00019452,2]
[370235872,1751920246183,-460.0,0.00019452,2]
[370235874,1751920246192,-460.0,0.00019452,2]
[370235876,1751920246201,-789.45,0.00019452,2]
[370235878,1751920246210,-460.0,0.00019452,2]
[370235880,1751920246222,-460.0,0.00019452,2]
[370235882,1751920246231,-3120.51288996,0.00019452,2]
[370235903,1751920246429,-460.0,0.00019178,2]
[370235905,1751920246438,-383.85500005,0.00019178,2]
[370235931,1751920246665,-76.14499995,0.00019178,2]
[370235933,1751920246674,-460.0,0.00019452,2]
[370235935,1751920246684,-460.0,0.00019452,2]
[370235937,1751920246693,-460.0,0.00019452,2]
[370235939,1751920246703,-460.0,0.00019452,2]
[370235941,1751920246712,-460.0,0.00019452,2]
[370235943,1751920246721,-462.558355,0.00019452,2]
[370235945,1751920246730,-460.0,0.00019452,2]
[370235947,1751920246739,-460.0,0.00019452,2]
[370235949,1751920246747,-460.0,0.00019452,2]
[370235951,1751920246757,-460.0,0.00019452,2]
[370235953,1751920246767,-460.0,0.00019452,2]
[370235955,1751920246776,-460.0,0.00019452,2]
[370235957,1751920246785,-460.0,0.00019452,2]
[370235959,1751920246795,-1356.31,0.00019452,2]
[370235961,1751920246804,-460.0,0.00019452,2]
[370235963,1751920246815,-460.0,0.00019452,2]
[370235965,1751920246827,-460.0,0.00019452,2]
[370235966,1751920246836,-460.0,0.00019452,2]
[370235969,1751920246845,-805.64,0.00019452,2]
[370235970,1751920246854,-460.0,0.00019452,2]
[370235972,1751920246864,-460.0,0.00019452,2]
[370235975,1751920246874,-500.0,0.00019452,2]
[370235977,1751920246884,-460.0,0.00019452,2]
[370235978,1751920246893,-460.0,0.00019452,2]
[370235981,1751920246902,-460.0,0.00019452,2]
[370235983,1751920246912,-460.0,0.00019452,2]
[370235984,1751920246921,-460.0,0.00019452,2]
[370235986,1751920246930,-460.0,0.00019452,2]
[370235988,1751920246940,-640.34,0.00019452,2]
[370235991,1751920246949,-460.0,0.00019452,2]
[370235993,1751920246959,-460.0,0.00019452,2]
[370235995,1751920246968,-460.0,0.00019452,2]
[370235996,1751920246977,-460.0,0.00019452,2]
[370235999,1751920246986,-460.0,0.00019452,2]
[370236001,1751920246996,-460.0,0.00019452,2]
[370236003,1751920247005,-460.0,0.00019452,2]
[370236005,1751920247015,-460.0,0.00019452,2]
[370236007,1751920247024,-460.0,0.00019452,2]
[370236008,1751920247033,-1742.56,0.00019452,2]
[370236011,1751920247042,-460.0,0.00019452,2]
[370236012,1751920247051,-460.0,0.00019452,2]
[370236015,1751920247060,-3693.57050999,0.00019452,2]
[370236017,1751920247073,-30.78949001,0.00019452,2]
[370236019,1751920247081,-460.0,0.00019452,2]
[370236021,1751920247091,-460.0,0.00019452,2]
[370236023,1751920247100,-460.0,0.00019452,2]
[370236025,1751920247109,-2487.93,0.00019452,2]
[370236027,1751920247118,-460.0,0.00019452,2]
[370236029,1751920247127,-460.0,0.00019452,2]
[370236031,1751920247136,-460.0,0.00019452,2]
[370236033,1751920247145,-460.0,0.00019452,2]
[370236035,1751920247154,-460.0,0.00019452,2]
[370236037,1751920247163,-460.0,0.00019452,2]
[370236039,1751920247173,-652.56,0.00019452,2]
[370236041,1751920247182,-460.0,0.00019452,2]
[370236043,1751920247192,-460.0,0.00019452,2]
[370236045,1751920247201,-460.0,0.00019452,2]
[370236047,1751920247211,-951.02,0.00019452,2]
[370236049,1751920247223,-460.0,0.00019452,2]
[370236051,1751920247232,-462.1149474,0.00019452,2]
[370236053,1751920247242,-460.0,0.00019452,2]
[370236055,1751920247251,-460.0,0.00019452,2]
[370236057,1751920247260,-460.0,0.00019452,2]
[370236059,1751920247269,-460.0,0.00019452,2]
[370236061,1751920247279,-460.0,0.00019452,2]
[370236063,1751920247288,-1218.96,0.00019452,2]
[370236065,1751920247300,-1437.91,0.00019452,2]
[370236067,1751920247310,-460.0,0.00019452,2]
[370236069,1751920247320,-460.0,0.00019452,2]
[370236071,1751920247330,-460.0,0.00019452,2]
[370236073,1751920247339,-460.0,0.00019452,2]
[370236075,1751920247348,-460.0,0.00019452,2]
[370236077,1751920247358,-460.0,0.00019452,2]
[370236079,1751920247367,-460.0,0.00019452,2]
[370236081,1751920247377,-460.0,0.00019452,2]
[370236083,1751920247386,-460.0,0.00019452,2]
[370236085,1751920247396,-460.0,0.00019452,2]
[370236087,1751920247405,-460.0,0.00019452,2]
[370236089,1751920247414,-460.0,0.00019452,2]
[370236091,1751920247424,-460.0,0.00019452,2]
[370236093,1751920247433,-460.0,0.00019452,2]
[370236095,1751920247442,-460.0,0.00019452,2]
[370236097,1751920247452,-392.90524459,0.00019452,2]
[370236099,1751920247461,-460.0,0.00019452,2]
[370236101,1751920247470,-460.0,0.00019452,2]
[370236103,1751920247480,-1538.72,0.00019452,2]
[370236105,1751920247489,-460.0,0.00019452,2]
[370236107,1751920247499,-460.0,0.00019452,2]
[370236109,1751920247510,-460.0,0.00019452,2]
[370236111,1751920247519,-460.0,0.00019452,2]
[370236113,1751920247529,-460.0,0.00019452,2]
[370236115,1751920247538,-460.0,0.00019452,2]
[370236117,1751920247548,-460.0,0.00019452,2]
[370236119,1751920247558,-460.0,0.00019452,2]
[370236121,1751920247567,-460.0,0.00019452,2]
[370236123,1751920247576,-460.0,0.00019452,2]
[370236125,1751920247586,-460.0,0.00019452,2]
[370236127,1751920247595,-460.0,0.00019452,2]
[370236129,1751920247605,-460.0,0.00019452,2]
[370236131,1751920247615,-460.0,0.00019452,2]
[370236133,1751920247624,-460.0,0.00019452,2]
[370236135,1751920247635,-460.0,0.00019452,2]
[370236137,1751920247647,-460.0,0.00019452,2]
[370236139,1751920247656,-460.0,0.00019452,2]
[370236141,1751920247665,-553.69,0.00019452,2]
[370236143,1751920247675,-460.0,0.00019452,2]
[370236145,1751920247685,-460.0,0.00019452,2]
[370236147,1751920247694,-460.0,0.00019452,2]
[370236149,1751920247703,-460.0,0.00019452,2]
[370236151,1751920247713,-460.0,0.00019452,2]
[370236153,1751920247722,-460.0,0.00019452,2]
[370236155,1751920247732,-460.0,0.00019452,2]
[370236157,1751920247741,-460.0,0.00019452,2]
[370236159,1751920247750,-460.0,0.00019452,2]
[370236161,1751920247759,-460.0,0.00019452,2]
[370236163,1751920247768,-460.0,0.00019452,2]
[370236165,1751920247777,-460.0,0.00019452,2]
[370236167,1751920247787,-251.51,0.00019452,2]
[370236169,1751920247796,-1689.24,0.00019452,2]
[370236171,1751920247805,-460.0,0.00019452,2]
[370236173,1751920247815,-460.0,0.00019452,2]
[370236175,1751920247823,-460.0,0.00019452,2]
[370236177,1751920247832,-2289.83,0.00019452,2]
[370236179,1751920247842,-460.0,0.00019452,2]
[370236181,1751920247851,-460.0,0.00019452,2]
[370236183,1751920247860,-460.0,0.00019452,2]
[370236185,1751920247869,-457.37082887,0.00019452,2]
[370238989,1751920382614,200000.0,0.00025202,120]
[370238990,1751920383529,200000.0,0.00025202,120]
[370238991,1751920384475,162265.354841,0.00025202,120]
[370238996,1751920776478,-150.0,0.00020153,30]
[370238997,1751920776535,-150.0,0.00021113,30]
[370238998,1751920776785,-155.89,0.000239,30]
[370238999,1751920787885,-4000.0,0.00025149,60]
[370239000,1751920787909,-418.0,0.00025164,60]
[370239001,1751920787949,-160.0,0.00026,30]
[370239002,1751920787973,-160.0,0.00026,30]
[370239003,1751920787998,-30000.00000063,0.00026,30]
[370239004,1751920788023,-848.27993403,0.00026,30]
[370239005,1751920788046,-837.79946008,0.00026,30]
[370239006,1751920788070,-230.48668418,0.00026,30]
[370239007,1751920788094,-524.98484073,0.00026,30]
[370239008,1751920788119,-160.0,0.00026,30]
[370239009,1751920788142,-214.06929976,0.00026,30]
[370239010,1751920791279,215.21338352,0.00026,30]
[370239011,1751920794544,150.0,0.00022135,30]
[370239012,1751920804605,-1187.61179962,0.00027401,120]
[370239013,1751920804630,-200.0,0.00027406,120]
[370239014,1751920804656,-200.0,0.00027593,120]
[370239015,1751920804683,-200.0,0.00027831,120]
[370239016,1751920804708,-1273.6876,0.00028,120]
[370239017,1751920813006,-200.0,0.00028279,120]
[370239018,1751920813039,-200.0,0.00028285,120]
[370239019,1751920813076,-200.0,0.00028462,120]
[370239020,1751920813116,-200.0,0.00028483,120]
[370239021,1751920813159,-361.15259,0.00029,120]
[370239022,1751920817477,-848.27993403,0.00026,30]
[370239023,1751920817515,-500.0,0.00027397,30]
[370239024,1751920817540,-822.82069606,0.000275,30]
[370239025,1751920817564,-2000.0,0.000277,30]
[370239026,1751920817588,-153.0,0.00027729,30]
[370239027,1751920817612,-153.0,0.00027729,30]
[370239028,1751920817637,-1935.4,0.00027862,30]
[370239029,1751920817662,-153.0,0.0002855,30]
[370239030,1751920826568,-1444.0,0.00029041,120]
[370239031,1751920826595,-1273.6876,0.000296,120]
[370239032,1751920826620,-400.0,0.0003,120]
[370239033,1751920826646,-524.98484073,0.0003,120]
[370239034,1751920826671,-214.06929976,0.0003,120]
[370239035,1751920834001,-2008.15986709,0.00031,120]
[370239036,1751920834025,-837.79946008,0.00031,120]
[370239037,1751920834051,-230.48668418,0.00031,120]
[370239038,1751920834076,-160.0,0.00031,120]
[370239039,1751920834102,-215.21338352,0.00031,120]
[370239040,1751921061454,2992.63079326,0.000181,9]
[370239041,1751921081078,9554.01515927,0.00031,120]
[370239043,1751921243098,-167.0,0.00018795,2]
[370239044,1751921243119,-300.0,0.00018795,2]
[370239045,1751921243141,-1200.0,0.00018795,2]
[370239046,1751921243162,-300.0,0.00018795,2]
[370239047,1751921243183,-1200.0,0.00018795,2]
[370239048,1751921243208,-2962.30031615,0.000189,2]
[370239049,1751921243229,-50000.0,0.00018999,2]
[370239050,1751921243249,-500.0,0.00018999,2]
[370239051,1751921243270,-500.0,0.00018999,2]
[370239052,1751921243296,-502.40031963,0.00018999,2]
[370239053,1751921243317,-188.62146959,0.00018999,2]
[370239054,1751921243337,-500.0,0.00018999,2]
[370239055,1751921243359,-500.0,0.00018999,2]
[370239056,1751921243380,-500.0,0.00018999,2]
[370239057,1751921243403,-500.0,0.00018999,2]
[370239058,1751921243424,-165.88609294,0.00018999,2]
[370239059,1751921243444,-500.0,0.00018999,2]
[370239060,1751921243466,-589.90695514,0.00018999,2]
[370239061,1751921243488,-500.0,0.00018999,2]
[370239062,1751921243513,-500.0,0.00018999,2]
[370239063,1751921243534,-500.0,0.00018999,2]
[370239064,1751921243555,-500.0,0.00018999,2]
[370239065,1751921243579,-500.0,0.00018999,2]
[370239066,1751921243601,-500.0,0.00018999,2]
[370239067,1751921243623,-500.0,0.00018999,2]
[370239068,1751921243644,-251.01513462,0.00018999,2]
[370239069,1751921243667,-274.02793839,0.00018999,2]
[370239070,1751921243688,-500.0,0.00018999,2]
[370239071,1751921243709,-214.3001296,0.00018999,2]
[370239072,1751921243736,-500.0,0.00018999,2]
[370239073,1751921243760,-500.0,0.00018999,2]
[370239074,1751921243782,-500.0,0.00018999,2]
[370239075,1751921243804,-500.0,0.00018999,2]
[370239076,1751921243827,-500.0,0.00018999,2]
[370239077,1751921243851,-500.0,0.00018999,2]
[370239078,1751921243873,-500.0,0.00018999,2]
[370239079,1751921243895,-500.0,0.00018999,2]
[370239080,1751921243917,-500.0,0.00018999,2]
[370239081,1751921243939,-500.0,0.00018999,2]
[370239082,1751921243963,-539.33457382,0.00018999,2]
[370239083,1751921243985,-500.0,0.00018999,2]
[370239084,1751921244006,-500.0,0.00018999,2]
[370239085,1751921244028,-500.0,0.00018999,2]
[370239086,1751921244049,-156.86608111,0.00018999,2]
[370239087,1751921244070,-500.0,0.00018999,2]
[370239088,1751921244092,-500.0,0.00018999,2]
[370239089,1751921244113,-612.56333042,0.00018999,2]
[370239090,1751921244136,-500.0,0.00018999,2]
[370239091,1751921244157,-500.0,0.00018999,2]
[370239092,1751921244178,-500.0,0.00018999,2]
[370239093,1751921244201,-500.0,0.00018999,2]
[370239094,1751921244224,-500.0,0.00018999,2]
[370239095,1751921244246,-500.0,0.00018999,2]
[370239096,1751921244273,-500.0,0.00018999,2]
[370239097,1751921244295,-500.0,0.00018999,2]
[370239098,1751921244317,-500.0,0.00018999,2]
[370239099,1751921244340,-500.0,0.00018999,2]
[370239100,1751921244364,-500.0,0.00018999,2]
[370239101,1751921244387,-500.0,0.00018999,2]
[370239102,1751921244411,-500.0,0.00018999,2]
[370239103,1751921244433,-500.0,0.00018999,2]
[370239104,1751921244457,-500.0,0.00018999,2]
[370239105,1751921244482,-500.0,0.00018999,2]
[370239106,1751921244508,-500.0,0.00018999,2]
[370239107,1751921244533,-500.0,0.00018999,2]
[370239108,1751921244558,-95.12472459,0.00018999,2]
[370239109,1751921254085,-404.87527541,0.00018999,2]
[370239110,1751921254107,-500.0,0.00018999,2]
[370239111,1751921254129,-466.17278874,0.00018999,2]
[370239112,1751921254150,-500.0,0.00018999,2]
[370239113,1751921254172,-500.0,0.00018999,2]
[370239114,1751921254193,-500.0,0.00018999,2]
[370239115,1751921254214,-500.0,0.00018999,2]
[370239116,1751921254234,-50668.00503512,0.00019,4]
[370239117,1751921254254,-1765.29847997,0.00019078,2]
[370239118,1751921254280,-2962.30031597,0.00019141,2]
[370239119,1751921254301,-590.43,0.00019153,3]
[370239120,1751921254321,-1574.42,0.00019163,3]
[370239121,1751921254341,-787.21,0.00019163,3]
[370239122,1751921254361,-393.6,0.00019163,3]
[370239123,1751921254381,-196.8,0.00019163,3]
[370239124,1751921254402,-500.0,0.00019173,2]
[370239125,1751921254422,-502.2040564,0.00019173,2]
[370239126,1751921254441,-500.0,0.00019173,2]
[370239127,1751921254461,-500.0,0.00019173,2]
[370239128,1751921254481,-500.0,0.00019173,2]
[370239129,1751921254501,-269.68489418,0.00019173,2]
[370239130,1751921254521,-500.0,0.00019173,2]
[370239131,1751921254541,-500.54433181,0.00019173,2]
[370239132,1751921254560,-500.0,0.00019173,2]
[370239133,1751921254584,-636.66850762,0.00019173,2]
[370239134,1751921254603,-503.36801097,0.00019173,2]
[370239135,1751921254622,-500.0,0.00019173,2]